Cogmind - Beta 13 @@@ ROGUE MODE // 2024.07.07 @ 17:14:48 Player: ThatBishHoly Result: Destroyed by D-53 Grenadier with Mini Grenade Launcher Performance ------------- Evolutions (0) 0 Regions Visited (2) 400 Robots Destroyed (14) 70 Value Destroyed (322) 322 Prototype IDs (0) 0 Alien Tech Used (0) 0 Bonus (0) 0 TOTAL SCORE: 792 Bonus ------- None Cogmind --------- Core Integrity 0/250 Matter 210/300 Energy 100/100 System Corruption 0% Temperature Cool (0) Movement Core (50) Location -10/Mines Parts ------- > --- POWER (1) -------- (None) > --- PROPULSION (2) --- (None) > --- UTILITY (2) ------ (None) > --- WEAPON (2) ------- (None) > --- INVENTORY (5) ---- Mining Laser Peak State ------------ > --- POWER ------------ Ion Engine > --- PROPULSION ------- Aluminum Leg Aluminum Leg > --- UTILITY ---------- Sensor Array > --- WEAPON ----------- Assault Rifle Rocket Launcher > --- INVENTORY -------- Mining Laser [Rating: 7] Favorites ----------- Power Ion Engine Engine Ion Engine Propulsion Aluminum Leg Leg Aluminum Leg Utility Sensor Array Device Sensor Array Weapon Grenade Launcher Energy Gun EM Pulse Gun Ballistic Gun Assault Rifle Launcher Grenade Launcher Build | -11 -10 -10 ------- Run | Yrd Mat Min Slots Evolved . | . . . Power . | . . . Propulsion . | . . . Utility . | . . . Weapon . | . . . Parts Attached 13 | 5 7 1 Power 3 | 1 2 . Engine 3 | 1 2 . Core . | . . . Reactor . | . . . Propulsion 3 | 2 1 . Treads . | . . . Leg 3 | 2 1 . Wheel . | . . . Hover . | . . . Flight . | . . . Utility 2 | . 2 . Device 2 | . 2 . Storage . | . . . Processor . | . . . Hackware . | . . . Protection . | . . . Artifact . | . . . Weapon 5 | 2 2 1 Energy Gun 1 | 1 . . Energy Cannon . | . . . Ballistic Gun 2 | 1 1 . Ballistic Cannon . | . . . Launcher 2 | . 1 1 Special Weapon . | . . . Impact Weapon . | . . . Slashing Weapon . | . . . Piercing Weapon . | . . . Special Melee Weapon . | . . . Unidentified Prototypes . | . . . Parts Lost 10 | . 3 7 Power 2 | . 1 1 Propulsion 2 | . . 2 Utility 2 | . 1 1 Weapon 4 | . 1 3 Highest Loss Streak 7 | . 3 7 To Critical Strikes . | . . . Average Slot Usage (%) 81 | . 79 85 Engine 12 | . 12 14 Leg 28 | . 28 28 Device 12 | . 11 14 Energy Gun 5 | . 8 . Ballistic Gun 9 | . 6 14 Launcher 12 | . 12 14 Naked Turns . | . . . Heaviest Build 11 | 7 11 11 Greatest Support 20 | 20 20 20 Greatest Overweight (x) . | . . . Average Overweight (x) . | . . . Largest Inventory Capacity 5 | 5 5 5 Average Capacity 5 | 5 5 5 Most Carried 5 | 5 2 2 Average Carried . | . . 1 Final Capacity 5 | 5 5 5 Final Carried 1 | . 1 1 Class Distribution -------------------- 100% | Mutant Dominant Class ---------------- Mutant | -10/Materials Mutant | -10/Mines Resources | -11 -10 -10 ----------- Run | Yrd Mat Min Matter Collected 377 | 223 148 6 Remotely . | . . . Salvage Created 294 | . 228 66 Parts 26 | . 23 3 Haulers Intercepted . | . . . Recyclers Shooed . | . . . Parts Field Recycled . | . . . Retrieved Matter . | . . . Parts Self-Destructed . | . . . Prevented . | . . . Kills | -11 -10 -10 ------- Run | Yrd Mat Min Combat Hostiles Destroyed 12 | . 9 3 Guns 1 | . . 1 AOE 11 | . 9 2 Classes Destroyed 3 | . 3 . Recycler 2 | . 1 1 Swarmer 6 | . 3 3 Grunt 6 | . 6 . Best Kill Streak 5 | . 5 3 Combat Bots Only 4 | . 4 3 Max Kills in Single Turn 3 | . 3 2 Gunslinging . | . . . Exploded 2 | . 2 2 Melee . | . . . Uniques/NPCs Destroyed . | . . . Combat | -11 -10 -10 -------- Run | Yrd Mat Min Hostile Shots Fired 35 | . 21 14 Missed 8 | . 7 1 Damage Taken 889 | . 331 558 Core 255 | . 97 158 Absorbed by Shields . | . . . Core Remaining (%) 100 | 100 . . Volleys Fired 18 | . 12 6 Largest 2 | . 2 2 Hottest 53 | . 50 53 Shots Fired 30 | . 18 12 Gun 15 | . 9 6 Cannon . | . . . Launcher 15 | . 9 6 Special . | . . . Kinetic 12 | . 6 6 Thermal . | . . . Explosive 15 | . 9 6 Electromagnetic 3 | . 3 . Robot Hit Streak 7 | . 7 3 Robot Miss Streak 2 | . 2 2 Penetration Max . | . . . Secondary Targets . | . . . Shots Hit Robots 19 | . 13 6 Core Hits 26 | . 18 8 Critical Kills . | . . . Critical Parts Destroyed . | . . . Critical Strikes . | . . . Melee Attacks . | . . . Impact . | . . . Slashing . | . . . Piercing . | . . . Sneak Attacks . | . . . Combat Hostiles . | . . . Follow-up Attacks . | . . . Damage Inflicted 1070 | . 764 306 Guns 116 | . 74 42 Cannons . | . . . Explosions 954 | . 690 264 Melee . | . . . Ramming . | . . . Kinetic 77 | . 35 42 Thermal . | . . . Explosive 954 | . 690 264 Electromagnetic 39 | . 39 . Impact . | . . . Slashing . | . . . Piercing . | . . . Highest Corruption . | . . . Average Corruption . | . . . Corruption Purged . | . . . Corruption Blocked . | . . . Overload Shots . | . . . Overflow Damage 57 | . 32 25 Projectiles . | . . . Explosions 57 | . 32 25 Melee . | . . . Knockbacks . | . . . Impact . | . . . Kinetic . | . . . Secondary . | . . . Self-Inflicted Damage 290 | . 158 132 Shots 11 | . 6 5 Rammed . | . . . Targets Rammed . | . . . Kicked . | . . . Crushed . | . . . Highest Temperature 57 | . 57 . Average Temperature 37 | . 37 . Received Heat Transfer 96 | . 96 . Siege Activations . | . . . Robots Corrupted . | . . . Combat Hostiles . | . . . Parts Fried . | . . . Impact Corruptions . | . . . Robots Melted . | . . . Combat Hostiles . | . . . Parts Melted . | . . . Heat Transferred . | . . . Parts Sabotaged . | . . . Parts Stolen . | . . . Parts Stripped . | . . . Power Chain Reactions . | . . . Alert | -11 -10 -10 ------- Run | Yrd Mat Min Peak Influence 291 | . 291 129 Initial 35 | . . 35 Average 82 | . 70 111 Maximum Alert Level 1 | . 1 . Low Security (%) 91 | 100 85 100 Level 1 8 | . 14 . Level 2 . | . . . Level 3 . | . . . Level 4 . | . . . Level 5 . | . . . High Security . | . . . Max Security . | . . . Squads Dispatched 1 | . 1 . Investigation . | . . . Extermination . | . . . Reinforcement 1 | . 1 . Assault . | . . . Garrison . | . . . Intercept . | . . . Searches Triggered . | . . . Construction Impeded . | . . . Haulers Reinforced . | . . . Active Scanning Responses . | . . . Cargo Convoy Interrupts . | . . . Stealth | -11 -10 -10 --------- Run | Yrd Mat Min Distress Signals 1 | . 1 . Communications Jammed . | . . . Distress Signals . | . . . Times Spotted 17 | . 13 4 Peak Tracking Total 5 | . 5 4 Tactical Retreats . | . . . Traps | -11 -10 -10 ------- Run | Yrd Mat Min Traps Triggered . | . . . Indirectly . | . . . Trap Hack Attempts . | . . . Triggered . | . . . Disarmed . | . . . Reprogrammed . | . . . Reused . | . . . Traps Extracted . | . . . Installed . | . . . Triggered . | . . . Machines | -11 -10 -10 ---------- Run | Yrd Mat Min Machines Disabled 2 | . 2 . Max in Single Turn 1 | . 1 . Machines Repaired . | . . . Machines Dismantled . | . . . Machines Sabotaged . | . . . Overloaded Fab Kills . | . . . Hacking | -11 -10 -10 --------- Run | Yrd Mat Min Machines Accessed 2 | . 2 . Terminals 1 | . 1 . Fabricators . | . . . Repair Stations . | . . . Recycling Units 1 | . 1 . Scanalyzers . | . . . Garrison Access . | . . . Total Hacks 5 | . 5 . Successful 2 | . 2 . Failed 3 | . 3 . Catastrophic 1 | . 1 . Database Lockouts . | . . . Manual . | . . . Terminals 2 | . 2 . Fabricators . | . . . Repair Stations . | . . . Recycling Units 3 | . 3 . Scanalyzers . | . . . Garrison Access . | . . . Terminal Hacks 2 | . 2 . Alert Level 1 | . 1 . Dispatch Records 1 | . 1 . Fabricator Hacks . | . . . Repair Station Hacks . | . . . Recycling Unit Hacks . | . . . Scanalyzer . | . . . Garrison Access Hacks . | . . . Unauthorized Hacks . | . . . Terminals . | . . . Fabricators . | . . . Repair Stations . | . . . Recycling Units . | . . . Scanalyzers . | . . . Garrison Access . | . . . Data Cores Recovered . | . . . Used . | . . . Hacking Detections 2 | . 2 . Full Trace Events 1 | . 1 . Feedback Events . | . . . Feedback Blocked . | . . . Robot Schematics Acquired . | . . . Robots Built . | . . . Authchips . | . . . Time . | . . . Total Robot Build Rating . | . . . Part Schematics Acquired . | . . . Parts Built . | . . . Authchips . | . . . Time . | . . . Total Part Build Rating . | . . . Parts Repaired . | . . . Time . | . . . Parts Recycled . | . . . Recycled Matter . | . . . Retrieved Matter . | . . . Retrieved Components . | . . . Parts Scanalyzed . | . . . Part Schematics Acquired . | . . . Parts Damaged . | . . . Bothacking | -11 -10 -10 ------------ Run | Yrd Mat Min Used RIF Installer . | . . . Robots Hacked . | . . . Non-combat . | . . . Combat . | . . . Robot Hacks Applied . | . . . Relay Couplers Released . | . . . Fabnet Peak Effective % . | . . . Robots Rewired . | . . . Allies Hacked . | . . . Hacks Repelled . | . . . Allies | -11 -10 -10 -------- Run | Yrd Mat Min Total Allies 3 | . . 3 Largest Group 3 | . . 3 Highest-Rated Group 40 | . . 40 Highest-Rated Ally 16 | . . 16 Total Orders . | . . . Ally Attacks 13 | . . 13 Total Damage 101 | . . 101 Kills 2 | . . 2 Allies Corrupted . | . . . Allies Melted . | . . . Intel | -11 -10 -10 ------- Run | Yrd Mat Min Robot Analysis Total . | . . . Derelict Logs Recovered . | . . . Drone Launches . | . . . Drone Recoveries . | . . . Exploration | -11 -10 -10 ------------- Run | Yrd Mat Min Turns Passed 827 | 47 466 314 Spaces Moved 589 | 50 294 245 Core 32 | 32 . . Treads . | . . . Legs 557 | 18 294 245 Wheels . | . . . Hover . | . . . Flight . | . . . Fastest Speed 50 | 50 120 120 Average Speed 116 | 75 120 120 Slowest Speed 120 | 120 120 120 Overloaded Moves . | . . . Propulsion Burnouts . | . . . Robots Hopped . | . . . Cave-ins Triggered . | . . . Exploration Rate (%) 33 | 3 40 57 Regions Visited 2 Branch Regions 1 Pre-discovered Areas . | . . . Known Exits Taken . | . . . Unknown Exits Taken 2 | 1 1 . Scrap Searched . | . . . Spaces Dug . | . . . Terrain Destroyed 106 | . 64 42 Melee . | . . . Projectile . | . . . AOE 106 | . 64 42 Terrain Rammed . | . . . Walls Destroyed . | . . . Machines Disabled . | . . . Actions | -11 -10 -10 --------- Run | Yrd Mat Min Total 700 | 59 388 253 Wait 67 | . 67 . Move 587 | 49 293 245 Hop . | . . . Pick Up 13 | 5 7 1 Fast Attach . | . . . Attach 10 | 5 4 1 Detach . | . . . Swap 3 | . 3 . Drop 2 | . 2 . Fire 18 | . 12 6 Melee . | . . . Ram . | . . . Kick . | . . . Crush . | . . . Escape Stasis . | . . . Rewire . | . . . Trap . | . . . Miscellaneous . | . . . Route ------- -11/Scrapyard -10/Materials -10/Mines (discovered 1 exit: [*Mat]) History --------- Turn | Location | Event 14 | -11/Scrapyard | Discovered new exit (range 16) 48 | -11/Scrapyard | Entered Materials 308 | -10/Materials | Build established: Mutant 363 | -10/Materials | Lost 3 parts (1p1u1w) 498 | -10/Materials | Discovered new exit (range 7) 514 | -10/Materials | Entered Mines 593 | -10/Mines | Assisted by bots powering up and referring to "LRC-V3" 701 | -10/Mines | Received a Rocket Launcher from a helpful Derelict 725 | -10/Mines | Discovered new exit (range 6) 794 | -10/Mines | Assembled infested the area 821 | -10/Mines | Core integrity fell below 50% 828 | -10/Mines | Destroyed by D-53 Grenadier with Mini Grenade Launcher Last Messages --------------- 00820_ as-12710 destroyed. 00820_ Grenade Launcher destroyed. 00820_ Destroyed Grenade Launcher. 00822_ Trooper 1b destroyed. 00822_ Trooper 1a destroyed. 00822_ K-01 Serf collects debris. 00824_ Destroyed Shock Absorption System. 00824_ Sensor Array destroyed. 00824_ Destroyed Sensor Array. 00824_ Ion Engine destroyed. 00824_ Destroyed Ion Engine. 00826_ The unstable cave ceiling collapses. 00826_ as-76263 sneak attacks. 00826_ K-01 Serf system corrupted by crushing effect. 00826_ Aluminum Leg destroyed. 00826_ Rocket Launcher destroyed. 00826_ Assault Rifle destroyed. 00828_ Aluminum Leg destroyed. 00828_ D-53 Grenadier destroyed. Map ----- +----------------------------------------------------+ | ???????????????????????????????????????# # | | ?????????????????????????????##????????# # # | | ????????????????????????????## ???????# # #? | | ????????????????????????????# #####?# ## | | ????????????????????????????# ## # | | ?????????????????????????????# | | ??????????????????????????????# < | | ??????????????????????????????## ### | | ???????????????????????????????## ##??? | | ????????????? ?????????????????###### #????? | | ?????????? ?????????????????????## ##???? | | ????????? ??????????????????????# ##??? | | ????????? ??????????????????????# #??? | | ?????????? ??????????????????????# #??? | | ??????????? #????????????????????## ##??? | | ???????????# ####???????????????## ##??? | | ????????????# #??????????????## #??? | | ???????????## ??????????????# """ #??? | | ??????????## ????????????#??# """ ##??? | | ??????????# % ??????????? #??# """ ##???? | | ?????????## k % ##?#######? #??## ##????? | | ????????## # ## # ## #???## ##?????? | | ???????## #???# ##??????? | | ???????# #??## ##???????? | | ??????# a [ #### ##????????? | | ?????# ## %* @ d ##?????????? | | ??? ??# %[ ##### ##??????????? | | ??? ???# #??# #???????????? | | ????##### ?????# # #??# #???????????? | | ????????##??????#??## ###??# #???????????? | | ????????????????????## ##???? ???????????? | | ?????????????????????########????"" """??????????? | | ?????????????????????????????????"" """??????????? | | ?????????????????????????????????"" """ ?????????? | | ?????????????????????????????????? ??????????? | | ??????????????????????????????????##?????????????? | | ?????????????????????????????????????????????????? | | ?????????????????????????????????????????????????? | | | | | | | | | | | | | | | | | | | | | | | | | +----------------------------------------------------+ Best States ------------- Heat Dissipation 25 Energy Generation 10 Energy Capacity 250 Matter Stores 273 Matter Capacity 300 Sight Range 16 Robot Scan Range 14 Terrain Scan Range 14 Terrain Scan Density 10 Evasion (%) 55 Item Schematics ----------------- None Robot Schematics ------------------ None Fabricated ------------ Nothing Alien Tech Used ----------------- None Achievements -------------- None Challenges ------------ None Game ------ Seed NullBiomechanicalPod Manual? 0 Play Time 00:12:23 Cumulative 24.5 hours Start 2024.07.07 @ 17:03:35 End 2024.07.07 @ 17:14:48 Sessions 1 Manual Loads 0 Difficulty Rogue Special Mode None Game No. 74 Rogue 74 Adventurer 0 Explorer 0 Win Type - Total 0 Types 0/0/0/0/0/0/0/0/0 Lore% 16 Gallery% 31 Achievement% 23 Wizard Run 0 Options --------- Layout 1 ASCII 0 Keyboard 0 Movement Mouse Keybinds 0 Fullscreen 1 Font 16/SmallcapsGlow Map View 25x20 Zoom Use 96% Tactical HUD 1 Map Filters NONE Filters NONE Steam SD RUN: 17684344-a36c-4b26-89e1-b66baadf67f9